[Event "GER-chW 2019"]
[Site "Magdeburg"]
[Date "2019.05.30"]
[Round "7.9"]
[White "Ries, Jutta"]
[Black "Ley, Sabrina"]
[Result "1/2-1/2"]
[ECO "A03"]
[WhiteElo "2017"]
[BlackElo "1870"]
[Annotator "NA"]
[PlyCount "48"]
[EventDate "2019.05.26"]
[EventType "tourn"]
[EventCountry "GER"]
[SourceTitle "playchess.com"]
[Source "ChessBase"]
[SourceQuality "1"]
[TimeControl "40/5400+30:1800+30"]

1. f4 {[%emt 0:00:00]} d5 {[%emt 0:00:00]} 2. Nf3 {[%emt 0:00:00]} g6 {[%emt 0:00:00]} 3. e3 {[%emt 0:00:31]} Bg7 {[%emt 0:00:00]} 4. d4 {[%emt 0:00:54]} Nf6 {[%emt 0:01:54]} 5. c4 {[%emt 0:04:29]} O-O {[%emt 0:02:31]} 6. Nc3 {[%emt 0:00:42]} c6 {[%emt 0:01:26]} 7. Bd3 {[%emt 0:00:51]} b6 {[%emt 0:01:50]} 8. O-O {[%emt 0:00:47]} Bb7 {[%emt 0:00:45]} 9. Rb1 {[%emt 0:05:31]} Nbd7 {[%emt 0:10:48]} 10. b4 {[%emt 0:07:01]} dxc4 {[%emt 0:03:07]} 11. Bxc4 {[%emt 0:00:21]} Nd5 {[%emt 0:00:59]} 12. Bxd5 {[%emt 0:13:46]} cxd5 {[%emt 0:00:43]} 13. a4 {[%emt 0:00:12]} Rc8 {[%emt 0:02:34]} 14. Qb3 {[%emt 0:00:31]} Nf6 {[%emt 0:02:46]} 15. b5 {[%emt 0:09:43]} Rc7 {[%emt 0:11:21]} 16. Ba3 {[%emt 0:08:19]} Qc8 {[%emt 0:02:26]} 17. Rbc1 {[%emt 0:04:39]} Qf5 {[%emt 0:04:02]} 18. Na2 {[%emt 0:05:59]} Rfc8 {[%emt 0:03:04]} 19. Nb4 {[%emt 0:05:15]} Ne4 {[%emt 0:05:20]} 20. Na2 {[%emt 0:09:25]} Bf6 {[%emt 0:06:50]} 21. Rxc7 {[%emt 0:09:25]} Rxc7 {[%emt 0:00:04]} 22. Rc1 {[%emt 0:00:40]} Qc8 {[%emt 0:01:39]} 23. Rxc7 {[%emt 0:00:45]} Qxc7 {[%emt 0:00:05]} 24. Bb4 {[%emt 0:00:20]} h6 {[%emt 0:08:28]} 1/2-1/2

[Event "GER-chW 2019"]
[Site "Magdeburg"]
[Date "2019.05.30"]
[Round "7.10"]
[White "Lowke, Kathrin"]
[Black "Freter, Anke"]
[Result "0-1"]
[ECO "B33"]
[WhiteElo "1887"]
[BlackElo "1873"]
[Annotator "NA"]
[PlyCount "70"]
[EventDate "2019.05.26"]
[EventType "tourn"]
[EventCountry "GER"]
[SourceTitle "playchess.com"]
[Source "ChessBase"]
[SourceQuality "1"]
[TimeControl "40/5400+30:1800+30"]

1. e4 {[%emt 0:00:00]} c5 {[%emt 0:00:00]} 2. Nf3 {[%emt 0:00:00]} Nc6 {[%emt 0:00:00]} 3. d4 {[%emt 0:00:00]} cxd4 {[%emt 0:00:00]} 4. Nxd4 {[%emt 0:00:04]} Nf6 {[%emt 0:00:44]} 5. Nc3 {[%emt 0:00:13]} e5 {[%emt 0:00:27]} 6. Ndb5 {[%emt 0:01:01]} d6 {[%emt 0:00:36]} 7. Bg5 {[%emt 0:00:18]} a6 {[%emt 0:02:45]} 8. Na3 {[%emt 0:00:49]} b5 {[%emt 0:11:15]} 9. Nd5 {[%emt 0:01:09]} Be7 {[%emt 0:00:40]} 10. Bxf6 {[%emt 0:01:47]} Bxf6 {[%emt 0:00:51]} 11. c4 {[%emt 0:01:20]} O-O {[%emt 0:09:08]} 12. cxb5 {[%emt 0:04:18]} axb5 {[%emt 0:01:04]} 13. Nxb5 {[%emt 0:02:43]} Bg5 {[%emt 0:00:55]} 14. Bd3 {[%emt 0:04:06]} Be6 {[%emt 0:01:46]} 15. Nbc3 {[%emt 0:07:14]} Nd4 {[%emt 0:02:19]} 16. O-O {[%emt 0:00:37]} f5 {[%emt 0:02:05]} 17. f3 {[%emt 0:06:36]} f4 {[%emt 0:02:40]} 18. b4 {[%emt 0:07:22]} Bh4 {[%emt 0:01:07]} 19. b5 {[%emt 0:01:36]} Bg3 {[%emt 0:05:38]} 20. Ne2 {[%emt 0:03:40]} Nxe2+ {[%emt 0:02:54]} 21. Qxe2 {[%emt 0:00:39]} Qh4 {[%emt 0:01:37]} 22. h3 {[%emt 0:01:01]} Kh8 {[%emt 0:08:30]} 23. Nc7 {[%emt 0:07:23]} Bxh3 {[%emt 0:04:11]} 24. gxh3 {[%emt 0:00:35]} Ra3 {[%emt 0:06:11]} 25. Nd5 {[%emt 0:02:45]} Qxh3 {[%emt 0:01:09]} 26. Rad1 {[%emt 0:04:17]} Qd7 {[%emt 0:02:53]} 27. b6 {[%emt 0:04:17]} Rfa8 {[%emt 0:07:50]} 28. Rd2 {[%emt 0:01:14]} g5 {[%emt 0:00:52]} 29. Bb5 {[%emt 0:06:22]} Qg7 {[%emt 0:01:22]} 30. Rc2 {[%emt 0:04:59]} g4 {[%emt 0:03:04]} 31. Rc7 {[%emt 0:07:46]} gxf3 {[%emt 0:01:36]} 32. Rxf3 {[%emt 0:01:37]} Qg5 {[%emt 0:11:09]} 33. Rxa3 {[%emt 0:09:07]} Rxa3 {[%emt 0:00:10]} 34. b7 {[%emt 0:04:08]} Bh2+ {[%emt 0:00:12]} 35. Kxh2 {[%emt 0:00:13]} Rh3+ {[%emt 0:00:15]} 0-1

[Event "GER-chW 2019"]
[Site "Magdeburg"]
[Date "2019.05.31"]
[Round "8.1"]
[White "Michna, Marta"]
[Black "Erofeev, Anastasia"]
[Result "1-0"]
[ECO "D00"]
[WhiteElo "2355"]
[BlackElo "2003"]
[Annotator "ChessBase"]
[PlyCount "79"]
[EventDate "2019.05.26"]
[EventType "tourn"]
[EventCountry "GER"]
[SourceTitle "playchess.com"]
[Source "ChessBase"]
[SourceQuality "1"]
[TimeControl "40/5400+30:1800+30"]

1. d4 {[%emt 0:00:00]} d5 {[%emt 0:00:00]} 2. Bf4 {[%emt 0:00:12]} Nf6 {[%emt 0:00:00]} 3. e3 {[%emt 0:00:07]} e6 {[%emt 0:01:11]} 4. Nd2 {[%emt 0:00:44]} c5 {[%emt 0:00:41]} 5. c3 {[%emt 0:00:03]} Nc6 {[%emt 0:01:41]} 6. Ngf3 {[%emt 0:00:10]} Bd6 {[%emt 0:01:02]} 7. Bg3 {[%emt 0:00:40]} O-O {[%emt 0:02:06]} 8. Bd3 {[%emt 0:00:34]} b6 {[%emt 0:00:59]} 9. Ne5 {[%emt 0:00:09]} Bb7 {[%emt 0:00:27]} 10. f4 {[%emt 0:00:14]} Ne7 {[%emt 0:00:30]} 11. Qf3 {[%emt 0:00:49]} c4 {[%emt 0:02:49]} 12. Bc2 {[%emt 0:00:14]} Nf5 {[%emt 0:00:40]} 13. Bf2 {[%emt 0:00:40]} Be7 {[%emt 0:00:14]} 14. Nexc4 {[%emt 0:17:12]} Qc7 {[%emt 0:06:52]} 15. Ne5 {[%emt 0:00:41]} Nd6 {[%emt 0:00:25]} 16. Bh4 {[%emt 0:12:47]} Nfe4 {[%emt 0:13:32]} 17. Bxe7 {[%emt 0:00:05]} Qxe7 {[%emt 0:00:20]} 18. Qh3 {[%emt 0:14:19]} f6 {[%emt 0:09:07]} 19. Nef3 {[%emt 0:00:09]} Rad8 {[%emt 0:09:20]} 20. O-O {[%emt 0:01:55]} Bc8 {[%emt 0:04:59]} 21. Nxe4 {[%emt 0:00:12]} Nxe4 {[%emt 0:00:30]} 22. Bxe4 {[%emt 0:01:50]} dxe4 {[%emt 0:00:07]} 23. Nd2 {[%emt 0:00:10]} f5 {[%emt 0:06:59]} 24. Rf2 {[%emt 0:02:51]} Ba6 {[%emt 0:02:08]} 25. Kh1 {[%emt 0:03:36]} Bd3 {[%emt 0:07:38]} 26. g4 {[%emt 0:01:54]} b5 {[%emt 0:00:35]} 27. Rg1 {[%emt 0:02:15]} Rf7 {[%emt 0:02:26]} 28. Rfg2 {[%emt 0:02:53]} Kh8 {[%emt 0:09:20]} 29. Nb3 {[%emt 0:06:20]} Bc4 {[%emt 0:03:24]} 30. Nc5 {[%emt 0:00:16]} a5 {[%emt 0:01:29]} 31. b3 {[%emt 0:00:48]} Bd5 {[%emt 0:00:25]} 32. gxf5 {[%emt 0:00:13]} exf5 {[%emt 0:00:22]} 33. Rg5 {[%emt 0:00:24]} Rf6 {[%emt 0:04:19]} 34. Rxf5 {[%emt 0:03:16]} Be6 {[%emt 0:06:38]} 35. Re5 {[%emt 0:00:53]} Qxc5 {[%emt 0:00:20]} 36. Qxe6 {[%emt 0:00:51]} Qxc3 {[%emt 0:02:17]} 37. Qe8+ {[%emt 0:00:25]} Rf8 {[%emt 0:00:02]} 38. Qe7 {[%emt 0:01:09]} g6 {[%emt 0:02:14]} 39. Rh5 {[%emt 0:00:25]} gxh5 {[%emt 0:00:44]} 40. Qg7# {[%emt 0:00:04]} 1-0

[Event "GER-chW 2019"]
[Site "Magdeburg"]
[Date "2019.05.31"]
[Round "8.2"]
[White "Von Herman, Brigitte"]
[Black "Schulze, Lara"]
[Result "0-1"]
[ECO "C15"]
[WhiteElo "2064"]
[BlackElo "2160"]
[Annotator "ChessBase"]
[PlyCount "70"]
[EventDate "2019.05.26"]
[EventType "tourn"]
[EventCountry "GER"]
[SourceTitle "playchess.com"]
[Source "ChessBase"]
[SourceQuality "1"]
[TimeControl "40/5400+30:1800+30"]

1. e4 {[%emt 0:00:00]} e6 {[%emt 0:00:00]} 2. d4 {[%emt 0:00:00]} d5 {[%emt 0:00:00]} 3. Nc3 {[%emt 0:00:00]} Bb4 {[%emt 0:00:00]} 4. exd5 {[%emt 0:00:13]} exd5 {[%emt 0:00:00]} 5. Bd3 {[%emt 0:00:24]} Nc6 {[%emt 0:00:00]} 6. a3 {[%emt 0:00:11]} Bxc3+ {[%emt 0:00:00]} 7. bxc3 {[%emt 0:00:05]} Nge7 {[%emt 0:00:35]} 8. Qf3 {[%emt 0:00:28]} Be6 {[%emt 0:00:13]} 9. Rb1 {[%emt 0:04:21]} b6 {[%emt 0:00:10]} 10. Ne2 {[%emt 0:00:35]} Qd7 {[%emt 0:01:45]} 11. Ng3 {[%emt 0:04:20]} O-O-O {[%emt 0:10:11]} 12. O-O {[%emt 0:10:44]} h5 {[%emt 0:06:23]} 13. Bb5 {[%emt 0:10:05]} h4 {[%emt 0:20:42]} 14. Ne2 {[%emt 0:00:13]} h3 {[%emt 0:02:49]} 15. g3 {[%emt 0:01:56]} f6 {[%emt 0:08:22]} 16. a4 {[%emt 0:07:44]} Bg4 {[%emt 0:05:52]} 17. Qd3 {[%emt 0:00:35]} Qf5 {[%emt 0:02:35]} 18. f3 {[%emt 0:09:32]} Qxd3 {[%emt 0:01:06]} 19. cxd3 {[%emt 0:01:56]} Bd7 {[%emt 0:02:32]} 20. Ba3 {[%emt 0:01:37]} Nf5 {[%emt 0:03:41]} 21. Nf4 {[%emt 0:03:43]} Ne3 {[%emt 0:05:42]} 22. Rf2 {[%emt 0:05:55]} Kb7 {[%emt 0:05:23]} 23. Re2 {[%emt 0:01:38]} Rhe8 {[%emt 0:03:21]} 24. Kf2 {[%emt 0:09:02]} Nf5 {[%emt 0:00:13]} 25. Bxc6+ {[%emt 0:03:40]} Kxc6 {[%emt 0:00:59]} 26. Rxe8 {[%emt 0:02:02]} Rxe8 {[%emt 0:00:48]} 27. g4 {[%emt 0:00:53]} Nh4 {[%emt 0:07:59]} 28. Nxh3 {[%emt 0:02:50]} g5 {[%emt 0:02:54]} 29. a5 {[%emt 0:04:26]} bxa5 {[%emt 0:01:14]} 30. Bc5 {[%emt 0:00:13]} a6 {[%emt 0:03:53]} 31. Ng1 {[%emt 0:01:54]} f5 {[%emt 0:02:26]} 32. h3 {[%emt 0:01:24]} f4 {[%emt 0:01:13]} 33. Ne2 {[%emt 0:04:31]} Re3 {[%emt 0:00:58]} 34. Nc1 {[%emt 0:00:07]} Rxf3+ {[%emt 0:00:46]} 35. Ke2 {[%emt 0:00:05]} Rxh3 {[%emt 0:00:43]} 0-1

[Event "GER-chW 2019"]
[Site "Magdeburg"]
[Date "2019.05.31"]
[Round "8.3"]
[White "Koehler, Inken"]
[Black "Mehling, Katharina"]
[Result "1/2-1/2"]
[ECO "B09"]
[WhiteElo "1979"]
[BlackElo "1974"]
[Annotator "NA"]
[PlyCount "100"]
[EventDate "2019.05.26"]
[EventType "tourn"]
[EventCountry "GER"]
[SourceTitle "playchess.com"]
[Source "ChessBase"]
[SourceQuality "1"]
[TimeControl "40/5400+30:1800+30"]

1. e4 {[%emt 0:00:00]} d6 {[%emt 0:00:00]} 2. d4 {[%emt 0:00:00]} Nf6 {[%emt 0:00:00]} 3. Nc3 {[%emt 0:00:00]} g6 {[%emt 0:00:00]} 4. f4 {[%emt 0:00:07]} Bg7 {[%emt 0:00:06]} 5. Nf3 {[%emt 0:00:15]} O-O {[%emt 0:00:15]} 6. Be3 {[%emt 0:01:03]} c6 {[%emt 0:07:52]} 7. Bd3 {[%emt 0:01:52]} b5 {[%emt 0:07:31]} 8. Qd2 {[%emt 0:06:04]} Qa5 {[%emt 0:04:34]} 9. h3 {[%emt 0:05:16]} Bb7 {[%emt 0:05:42]} 10. e5 {[%emt 0:08:46]} Nfd7 {[%emt 0:15:08]} 11. Ne4 {[%emt 0:03:03]} Qc7 {[%emt 0:02:13]} 12. Nfg5 {[%emt 0:15:37]} Nb6 {[%emt 0:16:56]} 13. Qf2 {[%emt 0:07:22]} h6 {[%emt 0:04:58]} 14. Nf3 {[%emt 0:04:21]} Nc4 {[%emt 0:03:52]} 15. c3 {[%emt 0:04:28]} c5 {[%emt 0:03:49]} 16. g4 {[%emt 0:13:05]} Nxe3 {[%emt 0:02:55]} 17. Qxe3 {[%emt 0:00:06]} cxd4 {[%emt 0:00:16]} 18. cxd4 {[%emt 0:00:12]} dxe5 {[%emt 0:01:05]} 19. fxe5 {[%emt 0:00:38]} Nc6 {[%emt 0:01:57]} 20. O-O {[%emt 0:02:37]} Nb4 {[%emt 0:02:17]} 21. Rac1 {[%emt 0:02:30]} Qb6 {[%emt 0:00:18]} 22. Nc5 {[%emt 0:01:57]} Bc6 {[%emt 0:01:59]} 23. a3 {[%emt 0:02:43]} Nxd3 {[%emt 0:00:28]} 24. Qxd3 {[%emt 0:00:01]} Rad8 {[%emt 0:03:25]} 25. Rfd1 {[%emt 0:02:05]} Bd5 {[%emt 0:01:21]} 26. Qe3 {[%emt 0:02:38]} a5 {[%emt 0:02:32]} 27. b4 {[%emt 0:01:34]} axb4 {[%emt 0:00:52]} 28. axb4 {[%emt 0:00:01]} Rfe8 {[%emt 0:03:04]} 29. Ra1 {[%emt 0:01:19]} Ra8 {[%emt 0:00:48]} 30. Ne1 {[%emt 0:01:55]} Qc6 {[%emt 0:01:32]} 31. Ned3 {[%emt 0:01:18]} Rxa1 {[%emt 0:01:38]} 32. Rxa1 {[%emt 0:00:01]} Ra8 {[%emt 0:00:10]} 33. Ra5 {[%emt 0:05:02]} Rxa5 {[%emt 0:02:06]} 34. bxa5 {[%emt 0:00:01]} Qc7 {[%emt 0:01:44]} 35. Qe1 {[%emt 0:02:05]} Ba8 {[%emt 0:00:27]} 36. Nf4 {[%emt 0:02:02]} Qc6 {[%emt 0:00:42]} 37. Qg3 {[%emt 0:01:21]} Qh1+ {[%emt 0:00:24]} 38. Kf2 {[%emt 0:00:01]} Qa1 {[%emt 0:00:14]} 39. Nb3 {[%emt 0:00:49]} Qa2+ {[%emt 0:00:42]} 40. Ke1 Be4 {[%emt 0:00:45]} 41. Qc3 {[%emt 0:32:18]} e6 {[%emt 0:09:15]} 42. Nd2 {[%emt 0:00:00]} Bf8 {[%emt 0:05:54]} 43. Nxe4 {[%emt 0:00:00]} Qb1+ {[%emt 0:00:12]} 44. Kf2 {[%emt 0:00:00]} Qxe4 {[%emt 0:00:08]} 45. Ne2 {[%emt 0:00:00]} b4 {[%emt 0:01:59]} 46. Qf3 {[%emt 0:00:00]} Qc2 {[%emt 0:02:10]} 47. Qb7 {[%emt 0:00:00]} b3 {[%emt 0:00:48]} 48. a6 {[%emt 0:00:00]} b2 {[%emt 0:00:15]} 49. a7 {[%emt 0:00:00]} b1=Q {[%emt 0:00:17]} 50. Qxb1 {[%emt 0:00:00]} Qxb1 {[%emt 0:00:08]} 1/2-1/2

[Event "GER-chW 2019"]
[Site "Magdeburg"]
[Date "2019.05.31"]
[Round "8.4"]
[White "Burchardt, Brigitte"]
[Black "Kunze, Kerstin"]
[Result "1-0"]
[ECO "B20"]
[WhiteElo "2094"]
[BlackElo "2066"]
[Annotator "NA"]
[PlyCount "67"]
[EventDate "2019.05.26"]
[EventType "tourn"]
[EventCountry "GER"]
[SourceTitle "playchess.com"]
[Source "ChessBase"]
[SourceQuality "1"]
[TimeControl "40/5400+30:1800+30"]

1. e4 {[%emt 0:00:00]} c5 {[%emt 0:00:00]} 2. b3 {[%emt 0:00:00]} Nc6 {[%emt 0:00:58]} 3. Bb2 {[%emt 0:00:00]} d6 {[%emt 0:01:41]} 4. Bb5 {[%emt 0:00:00]} Bd7 {[%emt 0:00:30]} 5. f4 {[%emt 0:00:00]} e6 {[%emt 0:06:38]} 6. Nf3 {[%emt 0:06:30]} Nf6 {[%emt 0:11:15]} 7. Qe2 {[%emt 0:07:26]} a6 {[%emt 0:06:16]} 8. Bxc6 {[%emt 0:01:34]} Bxc6 {[%emt 0:00:10]} 9. d3 {[%emt 0:00:05]} d5 {[%emt 0:04:41]} 10. Nbd2 {[%emt 0:06:38]} Qc7 {[%emt 0:10:05]} 11. Be5 {[%emt 0:15:23]} Qa5 {[%emt 0:03:21]} 12. O-O {[%emt 0:15:54]} Be7 {[%emt 0:14:03]} 13. f5 {[%emt 0:09:11]} dxe4 {[%emt 0:07:29]} 14. dxe4 {[%emt 0:00:28]} O-O-O {[%emt 0:02:14]} 15. Nc4 {[%emt 0:01:48]} Bb5 {[%emt 0:00:43]} 16. fxe6 {[%emt 0:01:10]} fxe6 {[%emt 0:00:30]} 17. Ng5 {[%emt 0:03:44]} Bxc4 {[%emt 0:00:17]} 18. Qxc4 {[%emt 0:00:05]} Nd7 {[%emt 0:00:07]} 19. Bc3 {[%emt 0:00:56]} Qb6 {[%emt 0:05:55]} 20. Nf7 {[%emt 0:00:24]} Nf6 {[%emt 0:03:04]} 21. Nxh8 {[%emt 0:01:22]} Rxh8 {[%emt 0:00:04]} 22. Qe2 {[%emt 0:07:47]} h5 {[%emt 0:02:32]} 23. Bxf6 {[%emt 0:03:35]} Bxf6 {[%emt 0:01:00]} 24. e5 {[%emt 0:00:12]} Bg5 {[%emt 0:00:45]} 25. c4 {[%emt 0:00:29]} Qb4 {[%emt 0:01:10]} 26. Rad1 {[%emt 0:00:33]} g6 {[%emt 0:02:23]} 27. Rf7 {[%emt 0:02:28]} Qc3 {[%emt 0:01:10]} 28. Rf3 {[%emt 0:00:11]} Qa5 {[%emt 0:00:39]} 29. Qf2 {[%emt 0:01:42]} Bh6 {[%emt 0:00:38]} 30. Rf6 {[%emt 0:01:35]} Rd8 {[%emt 0:02:22]} 31. Rxd8+ {[%emt 0:00:48]} Kxd8 {[%emt 0:00:03]} 32. Rxg6 {[%emt 0:01:31]} Qc3 {[%emt 0:00:42]} 33. Rg8+ {[%emt 0:02:28]} Kd7 {[%emt 0:03:21]} 34. Qf7+ {[%emt 0:00:14]} 1-0

[Event "GER-chW 2019"]
[Site "Magdeburg"]
[Date "2019.05.31"]
[Round "8.5"]
[White "Schmidt, Jade"]
[Black "Zimmer, Elke"]
[Result "0-1"]
[ECO "E87"]
[WhiteElo "2062"]
[BlackElo "1926"]
[Annotator "NA"]
[PlyCount "132"]
[EventDate "2019.05.26"]
[EventType "tourn"]
[EventCountry "GER"]
[SourceTitle "playchess.com"]
[Source "ChessBase"]
[SourceQuality "1"]
[TimeControl "40/5400+30:1800+30"]

1. d4 {[%emt 0:00:00]} g6 {[%emt 0:00:00]} 2. e4 {[%emt 0:04:36]} d6 {[%emt 0:00:00]} 3. c4 {[%emt 0:02:27]} Nf6 {[%emt 0:04:39]} 4. Nc3 {[%emt 0:00:05]} Bg7 {[%emt 0:00:15]} 5. f3 {[%emt 0:00:09]} O-O {[%emt 0:00:21]} 6. Be3 {[%emt 0:00:03]} e5 {[%emt 0:00:49]} 7. d5 {[%emt 0:00:09]} a5 {[%emt 0:07:09]} 8. Qd2 {[%emt 0:00:28]} Na6 {[%emt 0:00:42]} 9. Bd3 {[%emt 0:00:24] E87: King's Indian: Sämisch: 6...e5 7 d5} (9. Nge2 Nd7 10. g4 Ndc5 11. Ng3 Bd7 12. h4 f6 13. O-O-O Rf7 14. Qh2 Qe7 15. Be2 Kf8 16. g5 fxg5 17. hxg5 {½-½ (63) Jimenez Jimenez,L (1990)-Jaquez,J (2230) Santo Domingo 2019}) 9... b6 {[%emt 0:00:10]} 10. Nge2 {[%emt 0:01:22]} Nc5 {[%emt 0:00:33]} 11. Bc2 {[%emt 0:00:23]} a4 {[%emt 0:03:21]} 12. O-O {[%emt 0:16:33]} Bd7 {[%emt 0:06:01]} 13. b4 $146 {[%emt 0:18:29]} ({Predecessor:} 13. Ng3 Rb8 14. Rfd1 Ra8 15. Bg5 Qb8 16. h4 h5 {½-½ (58) Feierfeil,J (1807)-Pokorny,J (1879) Prague 2018}) 13... axb3 {[%emt 0:10:37]} 14. axb3 {[%emt 0:01:16]} c6 {[%emt 0:12:10]} 15. Rxa8 {[%emt 0:06:33]} Qxa8 {[%emt 0:00:06]} 16. b4 {[%emt 0:00:59]} cxd5 {[%emt 0:01:46]} 17. bxc5 {[%emt 0:10:22]} d4 {[%emt 0:00:08]} 18. cxb6 {[%emt 0:00:19]} dxe3 {[%emt 0:00:20]} 19. Qxe3 {[%emt 0:00:06]} Qb7 {[%emt 0:00:09]} 20. Rd1 {[%emt 0:19:21]} Rc8 {[%emt 0:01:07]} 21. Bd3 {[%emt 0:04:33]} Ra8 {[%emt 0:03:43]} 22. Rb1 {[%emt 0:00:56]} h5 {[%emt 0:00:19]} 23. Nd1 {[%emt 0:10:29]} Ra3 {[%emt 0:01:12]} 24. Nec3 {[%emt 0:00:30]} Kh7 {[%emt 0:00:43]} 25. Qc1 {[%emt 0:00:20]} Ra8 {[%emt 0:01:10]} 26. Qb2 {[%emt 0:00:33]} Bc6 {[%emt 0:02:34]} 27. Ne3 {[%emt 0:00:37]} Bh6 {[%emt 0:00:48]} 28. Kf2 {[%emt 0:00:47]} Nd7 {[%emt 0:00:48]} 29. Ned5 {[%emt 0:00:16]} Nc5 {[%emt 0:01:50]} 30. Bc2 {[%emt 0:00:46]} Bg7 {[%emt 0:05:05]} 31. Ra1 {[%emt 0:00:17]} Rb8 {[%emt 0:07:13]} 32. Ke2 {[%emt 0:00:27]} Ne6 {[%emt 0:03:12]} 33. Ba4 {[%emt 0:00:57]} Nf4+ {[%emt 0:02:40]} 34. Nxf4 {[%emt 0:00:37]} exf4 {[%emt 0:00:11]} 35. Bc2 {[%emt 0:00:40]} Qxb6 {[%emt 0:00:41]} 36. Qxb6 {[%emt 0:00:07]} Rxb6 {[%emt 0:00:03]} 37. Ra3 {[%emt 0:00:04]} Rb4 {[%emt 0:01:13]} 38. Kd3 {[%emt 0:00:16]} Be5 {[%emt 0:01:46]} 39. Ra6 {[%emt 0:01:02]} Bd7 {[%emt 0:00:42]} 40. Na2 {[%emt 0:00:57]} Rb2 {[%emt 0:01:27]} 41. Nc3 {[%emt 0:30:37]} Be6 {[%emt 0:31:02]} 42. Ra4 {[%emt 0:00:00]} Kg7 {[%emt 0:00:00]} 43. Ne2 {[%emt 0:00:00]} g5 {[%emt 0:00:00]} 44. Nc1 {[%emt 0:00:00]} g4 {[%emt 0:00:00]} 45. Kd2 $1 {[%emt 0:00:00]} h4 {[%emt 0:00:00]} 46. Nd3 {[%emt 0:00:00]} h3 {[%emt 0:00:00]} 47. gxh3 {[%emt 0:00:00]} g3 {[%emt 0:00:00]} 48. hxg3 {[%emt 0:00:15]} fxg3 {[%emt 0:00:00]} 49. Nxe5 {[%emt 0:00:51]} g2 {[%emt 0:00:00]} 50. Ra1 {[%emt 0:00:05]} dxe5 {[%emt 0:00:00]} 51. Rg1 {[%emt 0:00:40]} Bxh3 {[%emt 0:00:00]} 52. Kc3 {[%emt 0:00:21]} Rb8 {[%emt 0:00:00]} 53. Ba4 {[%emt 0:03:04]} Kf6 {[%emt 0:00:00]} 54. c5 {[%emt 0:01:01]} Kg5 {[%emt 0:00:00]} 55. c6 {[%emt 0:00:39]} Kf4 {[%emt 0:00:00]} 56. Kc4 {[%emt 0:00:28]} Kxf3 {[%emt 0:00:00]} 57. Kd5 {[%emt 0:00:20]} f6 {[%emt 0:00:00]} 58. c7 {[%emt 0:00:29]} Rb4 {[%emt 0:00:00]} 59. Bc6 {[%emt 0:00:39]} Rd4+ {[%emt 0:00:09]} 60. Kc5 {[%emt 0:00:07]} Kf2 {[%emt 0:00:12]} 61. Ra1 $19 {[%emt 0:00:33]} g1=Q {[%emt 0:00:40]} 62. Rxg1 {[%emt 0:00:05]} Kxg1 {[%emt 0:00:07]} 63. Bd5 {[%emt 0:01:15]} Ra4 {[%emt 0:02:40]} 64. Kd6 {[%emt 0:00:21]} Ra6+ {[%emt 0:00:11]} 65. Ke7 {[%emt 0:00:12]} Kf2 {[%emt 0:00:27]} 66. Bb7 {[%emt 0:00:29]} Ra7 {[%emt 0:00:17]} 0-1

[Event "GER-chW 2019"]
[Site "Magdeburg"]
[Date "2019.05.31"]
[Round "8.6"]
[White "Perez Celis, Alba"]
[Black "Liu, Sijia Anna"]
[Result "1-0"]
[ECO "A01"]
[WhiteElo "1822"]
[BlackElo "1689"]
[Annotator "NA"]
[PlyCount "55"]
[EventDate "2019.05.26"]
[EventType "tourn"]
[EventCountry "GER"]
[SourceTitle "playchess.com"]
[Source "ChessBase"]
[SourceQuality "1"]
[TimeControl "40/5400+30:1800+30"]

1. b3 {[%emt 0:00:00]} Nf6 {[%emt 0:00:24]} 2. Bb2 {[%emt 0:00:00]} c5 {[%emt 0:01:54]} 3. e3 {[%emt 0:00:20]} Nc6 {[%emt 0:02:12]} 4. f4 {[%emt 0:00:28]} d5 {[%emt 0:04:54]} 5. Nf3 {[%emt 0:00:21]} g6 {[%emt 0:06:23]} 6. Bb5 {[%emt 0:01:35]} Bd7 {[%emt 0:01:30]} 7. Bxc6 {[%emt 0:00:53]} Bxc6 {[%emt 0:00:25]} 8. Ne5 {[%emt 0:00:52]} Bg7 {[%emt 0:01:13]} 9. Nxc6 {[%emt 0:01:20]} bxc6 {[%emt 0:00:06]} 10. O-O {[%emt 0:00:20]} O-O {[%emt 0:02:57]} 11. d3 {[%emt 0:00:44]} Qd7 {[%emt 0:07:38]} 12. Qe2 {[%emt 0:05:38]} d4 {[%emt 0:08:14]} 13. e4 {[%emt 0:04:34]} Ng4 {[%emt 0:02:17]} 14. Na3 {[%emt 0:04:12]} Ne3 {[%emt 0:04:14]} 15. Rf3 {[%emt 0:00:34]} e5 {[%emt 0:06:58]} 16. fxe5 {[%emt 0:09:15]} Bxe5 {[%emt 0:01:42]} 17. Rxe3 {[%emt 0:00:29]} Bxh2+ {[%emt 0:08:23]} 18. Kxh2 {[%emt 0:00:36]} dxe3 {[%emt 0:01:27]} 19. Qxe3 {[%emt 0:01:03]} Rae8 {[%emt 0:03:48]} 20. Qxc5 {[%emt 0:08:29]} Re6 {[%emt 0:03:38]} 21. Nc4 {[%emt 0:01:06]} Qc7+ {[%emt 0:07:46]} 22. Kg1 {[%emt 0:01:21]} Rfe8 {[%emt 0:04:20]} 23. Rf1 {[%emt 0:01:08]} g5 {[%emt 0:05:39]} 24. Qd4 {[%emt 0:06:10]} f6 {[%emt 0:02:21]} 25. Rxf6 {[%emt 0:01:24]} Qg7 {[%emt 0:03:45]} 26. Rf8+ {[%emt 0:06:49]} Qxf8 {[%emt 0:00:35]} 27. Qh8+ {[%emt 0:00:07]} Kf7 {[%emt 0:00:17]} 28. Qxh7+ {[%emt 0:00:07]} 1-0